bitfinex-derivatives/quotes_ETHF0:USTF0_20251118
["timestamp","ask_amount","ask_price","bid_price","bid_amount"]
[1763456574428,3.2078,3062.8,3062.7,0.9757]
[1763456574622,3.2078,3063.1,3062.7,0.9757]
[1763456575028,0.8078,3062.6,3062.5,0.00489644]
[1763456575232,3.2078,3063.1,3062.5,0.53469644]
[1763456576532,0.8078,3062.6,3062.5,0.00489644]
[1763456576934,4.0156,3062.6,3062.5,0.00489644]
[1763456577137,4.0156,3062.6,3062.5,0.49779644]
[1763456577337,3.2078,3062.6,3062.5,1.33749644]
[1763456577638,3.7646,3062.6,3062.5,0.00489644]
[1763456579741,3.2078,3062.6,3062.5,1.33749644]
[1763456580041,3.2078,3062.6,3062.5,0.49779644]
[1763456580341,3.7646,3062.6,3062.5,0.49779644]
[1763456580745,1.16132948,3063.2,3063.1,0.8397]
[1763456581040,4.13322748,3063.6,3063.5,1.3326]
[1763456581238,3.2078,3063.6,3063.5,1.3326]
[1763456584944,3.7646,3063.6,3063.5,0.4929]
[1763456585146,3.2078,3063.6,3063.5,1.3326]
[1763456585643,3.21179129,3064.0,3063.9,0.8397]
[1763456585840,3.26400001,3063.9,3062.9,3.005e-05]
[1763456586040,3.2078,3063.1,3063.0,0.4929]
[1763456586945,3.2078,3063.1,3063.0,0.4954481]
[1763456591249,3.2078,3063.1,3063.0,0.4929]
[1763456591545,3.2078,3063.1,3063.0,1.3326]
[1763456592131,3.2078,3063.1,3063.0,0.49556124]
[1763456593846,3.2078,3063.1,3063.0,1.33526124]
[1763456594543,3.2078,3063.1,3063.0,7.33526124]
[1763456594748,3.2078,3063.7,3063.6,0.8397]
[1763456595647,3.2078,3063.7,3063.5,0.4929]
[1763456596756,3.2078,3063.7,3063.6,0.8397]
[1763456597047,3.2078,3063.7,3063.5,0.4929]
[1763456600145,3.2078,3063.7,3063.6,0.8397]
[1763456601949,3.21269644,3064.1,3064.0,0.9733]
[1763456602155,0.00489644,3064.1,3064.0,1.5365]
[1763456603052,0.00799961,3064.1,3064.0,1.5365]
[1763456603246,3.21579961,3064.1,3064.0,1.5365]
[1763456603446,0.00799961,3064.1,3064.0,1.5365]
[1763456605046,0.00799961,3064.1,3064.0,0.5632]
[1763456605246,0.00799961,3064.1,3064.0,1.5365]
[1763456611256,4.37812366,3064.8,3064.5,0.5215]
[1763456611468,3.2078,3064.8,3064.5,0.5215]
[1763456612257,3.21095777,3064.8,3064.5,0.5215]
[1763456612460,3.21095777,3064.8,3064.7,0.866]
[1763456613660,0.00489644,3065.0,3064.9,0.866]
[1763456614564,0.00857087,3065.0,3064.9,0.866]
[1763456614764,0.00857087,3065.0,3064.9,1.12159508]
[1763456615566,3.2078,3065.7,3065.6,0.866]
[1763456616571,3.21097327,3065.7,3065.6,0.86852647]
[1763456620962,0.00317327,3065.7,3065.6,0.86852647]
[1763456621164,3.21097327,3065.7,3065.6,0.00252647]
[1763456621367,9.21097327,3065.7,3065.6,2.647e-05]
[1763456621664,3.21097327,3065.7,3065.6,2.647e-05]
[1763456622073,10.93231711,3065.7,3065.0,0.5215]
[1763456622261,3.2078,3065.1,3065.0,0.5215]
[1763456622873,3.2078,3065.1,3064.4,3.2078]
[1763456623072,3.2078,3065.1,3065.0,0.5215]
[1763456628065,3.2078,3065.1,3065.0,1.3875]
[1763456628268,3.2078,3065.1,3065.0,0.5215]
[1763456629075,4.92914384,3065.1,3064.3,0.00489644]
[1763456629266,4.96309943,3064.4,3063.2,3.2078]
[1763456629463,3.2078,3063.7,3063.2,3.2078]
[1763456629675,3.2078,3063.7,3063.0,0.5215]
[1763456630263,3.2078,3063.7,3063.5,0.52380095]
[1763456631976,3.2078,3063.7,3063.6,0.866]
[1763456634168,3.2078,3063.7,3063.6,0.86831422]
[1763456637680,0.00489644,3063.9,3063.8,0.9087]
[1763456638473,0.92679644,3063.9,3063.6,0.00231422]
[1763456638684,0.00489644,3063.9,3063.8,0.9087]
[1763456638880,0.92679644,3063.9,3063.6,0.00231422]
[1763456639070,0.9219,3063.7,3063.6,0.91101422]
[1763456639577,0.00489644,3063.9,3063.6,0.91101422]
[1763456640582,0.00489644,3063.9,3063.8,0.9087]
[1763456641781,0.92679644,3063.9,3063.8,0.9087]
[1763456641980,0.00489644,3063.9,3063.8,0.9087]
[1763456642181,0.92679644,3063.9,3063.8,0.9087]
[1763456642773,0.00489644,3063.9,3063.8,0.9087]
[1763456643679,0.00489644,3063.9,3063.2,1.15154108]
[1763456643680,9.26320001,3063.8,3063.2,2.0563]
[1763456643874,9.26320001,3063.8,3062.0,4.48521737]
[1763456643875,3.2078,3063.3,3061.5,2.81613154]
[1763456644079,3.2078,3061.6,3061.0,0.5094]
[1763456644269,3.2078,3061.6,3060.8,3.2078]
[1763456644270,0.74650262,3061.5,3060.8,3.2078]
[1763456644475,0.74650262,3061.5,3059.5,0.5094]
[1763456644476,1.17044467,3061.1,3059.8,0.25620223]
[1763456644674,1.17044467,3060.8,3060.0,0.51298287]
[1763456644980,3.2078,3060.4,3060.2,0.00489644]
[1763456645285,0.74650262,3060.3,3060.2,0.00489644]
[1763456645471,3.2078,3060.4,3060.2,0.00489644]
[1763456646273,0.78659655,3060.3,3060.0,0.00358287]
[1763456647687,3.2078,3060.4,3060.0,0.00358287]
[1763456647688,3.2078,3060.4,3060.0,0.51298287]
[1763456647986,3.2078,3060.4,3060.0,0.00358287]
[1763456648687,3.2078,3060.4,3060.0,0.51298287]
[1763456649389,3.2078,3060.4,3060.0,0.00358287]
[1763456649596,3.2078,3060.4,3060.0,0.51298287]
[1763456649889,11.2768,3060.4,3060.0,0.51298287]
[1763456650391,3.2078,3060.4,3060.0,1.04297287]
[1763456650784,3.2078,3060.4,3060.0,0.51298287]
[1763456651293,3.2078,3060.4,3060.2,0.52996]
[1763456651492,3.2078,3060.4,3060.0,1.04298287]
[1763456651688,3.2078,3060.4,3060.1,0.52998]
[1763456651893,3.2078,3060.4,3060.2,0.52996]
[1763456652397,3.2078,3060.4,3060.0,1.04297287]
[1763456652783,3.2078,3060.4,3060.0,1.04298287]
[1763456652987,3.2078,3060.4,3060.2,0.52996]
[1763456654188,3.2078,3060.4,3060.3,0.9087]
[1763456655292,0.42,3060.4,3060.3,0.9087]
[1763456655490,3.2078,3060.5,3060.4,1.43863]
[1763456657295,3.21269644,3060.9,3060.8,1.43857]
[1763456658694,3.21269644,3060.9,3060.7,0.52988]
[1763456659193,0.00489644,3060.9,3060.8,0.9087]
[1763456659395,3.2078,3061.3,3061.2,1.5614]
[1763456659784,1.75566701,3062.6,3061.6,1.0316]
[1763456659785,3.2078,3061.7,3061.6,1.0316]
[1763456659985,3.2078,3061.7,3061.6,1.56133]
[1763456660187,3.2078,3061.7,3061.6,0.52973]
[1763456660393,3.21091445,3061.7,3061.6,1.56133]
[1763456661392,3.21091445,3061.7,3061.6,0.52973]
[1763456661697,3.21091445,3061.7,3061.4,0.52976]
[1763456661989,3.21091445,3061.7,3061.3,0.00489644]
[1763456662389,0.80826246,3061.6,3061.5,1.686]
[1763456662589,3.21091445,3061.7,3061.6,0.52973]
[1763456662989,3.21091445,3061.7,3061.6,1.56133]
[1763456663393,3.21091445,3061.7,3061.5,1.18414]
[1763456664398,3.21091445,3061.7,3061.5,0.6544]
[1763456664598,0.80900767,3061.6,3061.3,0.00489644]
[1763456665701,6.80900767,3061.6,3060.7,3.2078]
[1763456665994,3.2078,3061.1,3060.7,0.52988]
[1763456666200,0.80900767,3061.0,3060.7,0.52988]
[1763456666500,0.80900767,3061.0,3060.5,1.03931]
[1763456666803,0.80900767,3061.0,3060.5,0.5094]
[1763456667194,0.80900767,3061.0,3060.8,0.52986]
[1763456667800,3.2078,3060.7,3060.0,0.00358287]
[1763456667995,3.2078,3060.7,3059.5,0.6544]
[1763456667996,3.2078,3060.1,3059.5,0.6544]
[1763456668193,3.2078,3059.6,3058.9,0.53018]
[1763456668401,3.2078,3059.1,3058.7,0.56291416]
[1763456668588,4.01680767,3059.1,3058.7,0.56291416]
[1763456668792,0.80900767,3059.0,3058.7,0.03269416]
[1763456669003,0.81214823,3059.0,3058.7,0.03517957]
[1763456669302,2.55422802,3059.0,3058.8,0.6259]
[1763456669502,0.80900767,3058.9,3058.7,0.03517957]
[1763456669705,1.16324527,3058.9,3058.7,0.03517957]
[1763456670193,1.97225294,3058.9,3058.7,0.03517957]
[1763456670389,0.80900767,3058.8,3058.7,0.03517957]
[1763456670898,1.97225294,3058.9,3058.7,0.03517957]
[1763456671197,1.97225294,3058.8,3058.7,0.03517957]
[1763456671401,0.80900767,3058.8,3058.7,0.03517957]
[1763456671909,2.55108746,3058.8,3058.7,0.03517957]
[1763456672104,3.14940691,3058.8,3058.7,0.03517957]
[1763456672904,13.01295573,3058.8,3057.7,0.5304]
[1763456673204,4.95566077,3057.8,3057.6,0.53041]
[1763456673413,2.55686844,3057.7,3057.6,0.53041]
[1763456673704,2.55686844,3057.7,3057.6,0.53326851]
[1763456674108,0.80900767,3057.7,3057.6,0.00285851]
[1763456674695,0.80900767,3057.7,3057.6,1.09825851]
[1763456674897,2.55768285,3057.7,3057.6,1.09825851]
[1763456675099,0.80900767,3057.7,3057.6,1.09825851]
[1763456675301,2.93514806,3058.5,3058.4,0.53028]
[1763456675612,0.5824,3060.0,3059.1,0.53016]
[1763456675796,1.11241,3060.0,3059.1,1.62556]
[1763456675995,0.5824,3060.0,3059.1,0.53016]
[1763456676201,1.06539644,3059.2,3058.6,3.2078]
[1763456676400,1.06785316,3059.2,3058.6,3.2078]
[1763456676906,1.06785316,3059.2,3058.2,3.8337]
[1763456677211,1.06785316,3059.2,3058.6,3.2078]
[1763456677610,1.0605,3058.7,3057.6,0.00285851]
[1763456677811,3.2078,3057.8,3057.7,1.0954]
[1763456678109,3.2078,3057.8,3057.6,0.00285851]
[1763456679110,3.2078,3057.8,3057.7,1.0954]
[1763456679314,3.2078,3058.2,3057.7,1.0954]
[1763456679706,0.53034,3058.1,3057.7,1.0954]
[1763456680098,3.2078,3058.2,3057.6,0.00285851]
[1763456680806,3.73812,3058.2,3057.6,0.00285851]
[1763456681411,3.2078,3058.2,3057.6,0.00285851]
[1763456681601,0.53034,3058.1,3057.6,0.00285851]
[1763456682208,0.53036,3058.0,3057.6,0.00285851]
[1763456682413,0.53035,3058.0,3057.6,0.00285851]
[1763456683709,0.53037,3057.9,3057.6,0.00285851]
[1763456684213,3.2078,3058.2,3057.6,0.00285851]
[1763456685515,3.73813,3058.2,3057.6,0.00285851]
[1763456685710,0.53033,3058.1,3057.6,0.00285851]
[1763456686616,0.53033,3058.1,3058.0,0.6259]
[1763456687616,3.2078,3058.6,3058.1,1.0954]
[1763456687910,3.2078,3058.6,3058.5,1.7213]
[1763456688214,3.2078,3058.6,3058.0,0.6259]
[1763456688215,0.53027,3058.5,3058.0,0.6259]
[1763456688413,3.2078,3058.6,3058.0,0.6259]
[1763456688414,3.73806,3058.6,3058.0,0.6259]
[1763456688601,0.53026,3058.5,3058.0,0.6259]
[1763456689017,3.2078,3058.6,3058.0,0.6259]
[1763456689217,0.53029,3058.4,3058.0,0.6259]
[1763456689813,0.5304,3057.7,3057.6,0.00285851]
[1763456690018,3.7382,3057.7,3057.6,0.00285851]
[1763456690218,11.3228,3057.7,3056.5,3.8337]
[1763456690520,0.53055,3056.9,3056.5,0.6259]
[1763456691121,0.00295914,3056.9,3056.5,0.62916882]
[1763456691614,0.53058,3056.7,3056.5,0.00326882]
[1763456691817,0.00295914,3056.9,3055.7,3.2078]
[1763456691818,0.53064,3056.4,3055.7,3.2078]
[1763456692012,3.73847,3056.2,3055.5,0.6259]
[1763456692220,0.53071,3056.0,3055.5,0.6259]
[1763456692418,3.2078,3055.8,3055.5,0.6259]
[1763456692619,9.1968,3056.3,3055.5,0.6259]
[1763456692820,0.53071,3056.0,3055.5,0.62928945]
[1763456693115,3.2078,3055.8,3055.5,0.62928945]
[1763456693311,3.2078,3055.8,3055.5,0.00338945]
[1763456693512,3.2078,3056.2,3055.8,0.6259]
[1763456693709,3.73847,3056.2,3055.8,0.6259]
[1763456693909,3.2078,3056.2,3055.8,0.6259]
[1763456694121,0.53069,3056.1,3055.8,0.6259]
[1763456694525,3.73848,3056.2,3055.8,0.6259]
[1763456694725,0.53069,3056.1,3055.8,0.6259]
[1763456695027,3.2078,3056.2,3055.8,0.6259]
[1763456695223,3.73847,3056.2,3055.8,0.6259]
[1763456695525,0.53072,3055.9,3055.5,0.00338945]
[1763456695728,3.2078,3055.8,3055.5,0.00338945]
[1763456696523,3.73854,3055.8,3055.5,0.00338945]
[1763456696721,0.53075,3055.7,3055.5,0.00338945]
[1763456696920,0.6893,3055.6,3055.5,0.00338945]
[1763456697522,0.6893,3055.6,3054.9,3.2078]
[1763456697523,3.06686046,3055.8,3055.2,0.76]
[1763456697718,0.69080453,3055.9,3055.3,3.2078]
[1763456698315,1.22152453,3055.9,3055.3,3.2078]
[1763456698512,1.22152453,3055.9,3055.3,3.21094702]
[1763456698833,0.69080453,3055.9,3055.3,3.21094702]
[1763456699228,0.00490453,3055.9,3055.8,0.76]
[1763456699526,0.00490453,3055.9,3055.8,5.3316]
[1763456700419,3.2078,3056.5,3055.8,5.3316]
[1763456700727,3.21075914,3056.9,3056.4,2.1238]
[1763456700922,3.21075914,3056.9,3056.4,0.76]
[1763456701718,3.21075914,3056.9,3056.8,1.3638]
[1763456701914,0.00295914,3056.9,3056.8,1.3638]
[1763456703727,0.00295914,3056.9,3056.6,3.2078]
[1763456705226,0.00295914,3056.9,3056.8,1.3638]
[1763456705730,0.00295914,3056.9,3056.4,0.76]
[1763456705924,0.00295914,3056.9,3056.8,1.3638]
[1763456706529,0.00295914,3056.9,3056.6,3.2078]
[1763456707826,0.00295914,3056.9,3056.8,1.3638]
[1763456708331,0.00295914,3056.9,3056.6,3.2078]
[1763456708535,0.53349914,3056.9,3056.6,3.2078]
[1763456708928,0.00295914,3056.9,3056.8,1.3638]
[1763456709227,0.00490453,3057.0,3056.9,1.3638]
[1763456710222,0.00273647,3057.0,3056.9,1.3638]
[1763456710429,0.53038,3057.9,3057.6,0.76]
[1763456710825,0.53039,3057.8,3057.6,0.76]
[1763456711325,0.53330281,3057.8,3057.6,0.76318475]
[1763456712331,3.2078,3057.7,3057.0,0.76]
[1763456712534,0.53049,3057.2,3057.0,0.76]
[1763456712719,0.53051,3057.1,3057.0,0.76]
[1763456712925,0.6965,3057.1,3056.5,3.2078]
[1763456713332,0.5305,3057.2,3056.5,3.21665658]
[1763456713625,0.53051,3057.1,3057.0,0.76]
[1763456714832,0.6965,3056.6,3056.5,0.00885658]
[1763456715045,3.9043,3056.6,3056.5,0.00885658]
[1763456718832,0.6876,3055.9,3055.6,3.2078]
[1763456719030,1.21832,3055.9,3055.6,3.2078]
[1763456719230,0.53074,3055.8,3055.6,3.2078]
[1763456719536,3.2078,3056.2,3055.6,3.2078]
[1763456719740,3.21270453,3056.2,3055.6,3.21055807]
[1763456720032,0.5307,3056.0,3055.8,0.7871]
[1763456720829,0.53073,3055.8,3055.6,0.00275807]
[1763456721234,0.4836,3055.2,3055.1,3.2078]
[1763456721530,0.53082,3055.3,3055.1,3.2078]
[1763456722135,3.2078,3055.7,3055.2,2.0748]
[1763456722348,3.2101023,3055.7,3055.2,2.07785158]
[1763456722635,0.53081,3055.4,3055.2,2.07785158]
[1763456723236,0.53081,3055.4,3055.2,0.79015158]
[1763456723433,0.4836,3055.3,3055.2,0.00305158]
[1763456723628,3.6914,3055.3,3055.2,0.00305158]
[1763456724135,3.2101023,3055.7,3055.2,2.07785158]
[1763456724347,0.4836,3055.3,3055.2,0.00305158]
[1763456724536,3.6914,3055.3,3055.2,0.00305158]
[1763456725128,0.53091,3054.8,3054.7,3.2078]
[1763456725337,3.2078,3055.3,3054.3,3.2078]
[1763456725531,0.53093,3054.7,3054.3,3.2078]
[1763456725932,0.53091,3054.8,3054.3,3.2078]
[1763456726129,0.4806,3054.6,3054.3,3.2078]
[1763456726435,3.73871,3054.8,3054.5,0.7871]
[1763456726830,0.53093,3054.7,3054.5,0.7871]
[1763456727032,0.4806,3054.6,3054.5,0.7871]
[1763456727740,0.3937,3054.4,3054.3,0.00269013]
[1763456727940,3.6015,3054.4,3053.7,0.0327477]
[1763456728141,3.2078,3054.4,3053.7,0.0327477]
[1763456728442,3.2078,3053.9,3053.7,0.0327477]
[1763456728640,0.3937,3053.8,3053.7,0.0327477]
[1763456728940,0.3937,3053.8,3053.7,0.03663222]
[1763456729340,0.53118,3053.3,3053.0,0.7871]
[1763456729534,0.53119,3053.2,3053.0,0.7871]
[1763456729733,0.53117,3053.4,3053.0,0.7871]
[1763456730042,0.53118,3053.3,3053.0,0.7871]
[1763456730243,0.00302328,3053.3,3053.0,0.78979818]
[1763456731340,0.3571,3053.1,3053.0,0.00269818]
[1763456731541,3.2078,3053.1,3052.4,3.47352296]
[1763456731735,0.53128,3052.7,3052.4,3.2078]
[1763456731936,0.88848,3052.1,3052.0,3.2078]
[1763456732240,0.88848,3052.1,3050.4,2.48081579]
[1763456732241,0.53144,3051.8,3051.0,3.967]
[1763456732437,3.2078,3052.1,3051.0,4.23043851]
[1763456732633,3.2078,3052.1,3051.0,3.97086947]
[1763456732842,3.2078,3051.5,3051.0,0.76306947]
[1763456733340,3.2078,3051.5,3051.0,2.02626947]
[1763456734049,0.53151,3051.4,3051.0,2.02626947]
[1763456734349,3.2078,3051.5,3051.0,0.76306947]
[1763456734845,3.73929,3051.5,3051.0,0.76306947]
[1763456735243,3.2078,3051.1,3051.0,2.02626947]
[1763456735446,3.21107071,3051.1,3051.0,0.76306947]
[1763456737048,3.56817071,3051.1,3051.0,0.00386947]
[1763456737243,0.3571,3050.6,3050.4,0.7592]
[1763456737450,3.21107071,3051.1,3051.0,0.7592]
[1763456737851,3.21107071,3051.1,3051.0,2.0224]
[1763456738049,0.00327071,3051.1,3051.0,2.0224]
[1763456738352,0.00327071,3051.1,3051.0,2.02581434]
[1763456739362,0.00491296,3051.6,3051.5,1.2632]
[1763456739554,0.53129,3052.7,3051.6,0.7592]
[1763456739856,3.2078,3053.0,3052.3,3.2078]
[1763456740349,0.00345491,3053.0,3052.9,1.2632]
[1763456744743,0.00345491,3053.0,3052.7,3.2078]
[1763456745258,0.53468491,3053.0,3052.7,3.2078]
[1763456745758,1.2356,3052.8,3052.7,3.2078]
[1763456745956,0.00345491,3053.0,3052.7,3.2078]
[1763456746161,0.53468491,3053.0,3052.7,3.2078]
[1763456746454,0.53124,3052.9,3052.7,3.2078]
[1763456746654,0.00345491,3053.0,3052.7,3.2078]
[1763456746861,0.53124,3052.9,3052.7,3.2078]
[1763456747257,1.2356,3052.8,3052.7,3.2078]
[1763456747450,1.76687,3052.8,3052.6,0.00491296]
[1763456748757,1.76686,3052.8,3052.6,0.00491296]
[1763456748953,3.2078,3052.9,3052.8,1.2632]
[1763456749253,0.53125,3052.8,3052.6,0.00491296]
[1763456749459,1.2356,3052.7,3052.6,0.00491296]
[1763456750250,3.2078,3052.9,3052.7,1.2632]
[1763456750452,3.2078,3052.9,3052.6,0.00491296]
[1763456750645,3.73905,3052.9,3052.6,0.00491296]
[1763456750854,3.2078,3052.9,3052.8,1.2632]
[1763456751045,1.2356,3052.7,3052.6,0.00491296]
[1763456751557,0.53125,3052.8,3052.6,0.00491296]
[1763456751854,3.2078,3052.9,3052.6,0.00491296]
[1763456752057,1.2356,3052.7,3052.2,3.2078]
[1763456752257,0.53132,3052.5,3052.2,3.2078]
[1763456752450,0.53134,3052.4,3052.2,3.2078]
[1763456753252,1.2356,3052.3,3052.2,3.2078]
[1763456753850,0.53141,3051.9,3051.8,3.2078]
[1763456754653,3.9262,3052.5,3051.8,3.2078]
[1763456754860,0.5314,3052.0,3051.8,3.2078]
[1763456755164,3.9262,3052.5,3051.8,3.2078]
[1763456755457,0.5314,3052.0,3051.8,3.2078]
[1763456755859,0.53138,3052.1,3051.8,3.2078]
[1763456756058,0.5314,3052.0,3051.9,1.2632]
[1763456756854,0.53137,3052.2,3051.9,1.2632]
[1763456757149,1.1422,3051.9,3051.8,3.2078]
[1763456757358,0.53147,3051.6,3051.4,3.2078]
[1763456758051,0.00491296,3051.8,3051.7,1.1331]
[1763456758253,0.53146,3051.6,3051.5,0.6969]
[1763456758449,0.00491296,3051.8,3051.4,3.2078]
[1763456758652,0.53146,3051.6,3051.5,1.1331]
[1763456758850,0.53155,3051.1,3049.9,1.14774386]
[1763456759150,0.53155,3051.1,3050.5,0.6969]
[1763456759151,3.2078,3051.1,3050.5,0.6969]
[1763456759457,0.53159,3050.9,3050.5,0.6969]
[1763456759646,3.2078,3051.1,3050.5,0.6969]
[1763456759847,0.53161,3050.8,3050.5,0.69993698]
[1763456760160,0.5350828,3050.8,3050.5,0.69993698]
[1763456760362,0.0034728,3050.8,3050.5,0.69993698]
[1763456760864,0.0034728,3050.8,3050.7,1.1331]
[1763456762955,0.00491296,3051.8,3051.5,1.83]
[1763456763156,0.00491296,3051.8,3051.7,1.1331]
[1763456763353,3.2078,3052.8,3052.3,1.1331]
[1763456763556,3.73906,3052.8,3052.5,1.1331]
[1763456763761,3.2078,3052.8,3052.5,1.1331]
[1763456763956,3.2106218,3052.8,3052.7,1.1331]
[1763456764255,3.2106218,3052.8,3052.7,0.00405699]
[1763456764256,0.0028218,3052.8,3052.7,0.00405699]
[1763456764660,0.5340718,3052.8,3052.7,0.00405699]
[1763456765159,4.8840718,3052.8,3052.7,0.00405699]
[1763456765355,4.3528218,3052.8,3052.7,0.00405699]
[1763456765559,3.2106218,3052.8,3052.7,0.00405699]
[1763456766363,4.3528218,3052.8,3052.7,0.00405699]
[1763456766758,15.41406505,3052.8,3051.4,0.00491296]
[1763456766954,3.2078,3051.5,3051.4,0.00491296]
[1763456767861,3.2078,3051.5,3051.4,0.00832228]
[1763456769570,3.2078,3051.5,3051.4,1.14142228]
[1763456770667,8.8732218,3052.8,3052.2,1.83]
[1763456770668,3.2078,3052.3,3052.2,1.83]
[1763456773863,3.2078,3052.7,3052.2,0.6969]
[1763456774071,3.2078,3052.7,3052.6,1.1331]
[1763456775866,3.2078,3052.7,3051.8,3.2078]
[1763456775867,0.53132,3052.5,3051.8,3.2078]
[1763456776066,0.53139,3052.1,3051.6,0.6969]
[1763456776272,0.53144,3051.8,3051.6,0.6969]
[1763456776473,3.2078,3051.9,3051.6,0.6969]
[1763456776673,3.73921,3051.9,3051.6,0.6969]
[1763456777066,0.53143,3051.8,3051.6,0.6969]
[1763456777267,1.67365,3051.7,3051.4,0.00832228]
[1763456777467,3.73922,3051.9,3051.4,0.00832228]
[1763456777664,0.53143,3051.8,3051.4,0.00832228]
[1763456779065,3.2078,3051.9,3051.4,0.00832228]
[1763456779268,3.2078,3051.9,3051.6,0.6969]
[1763456779670,3.73921,3051.9,3051.6,0.6969]
[1763456780580,3.2078,3051.9,3051.8,1.3821]
[1763456781278,3.73921,3051.9,3051.8,1.3821]
[1763456781478,5.01851,3051.9,3051.6,0.6969]
[1763456781675,2.31048,3051.5,3051.4,0.00832228]
[1763456781881,4.62477517,3051.5,3051.4,0.00832228]
[1763456788978,4.5831,3051.5,3051.4,0.00832228]
[1763456789179,10.94071237,3051.5,3050.5,0.6969]
[1763456789378,3.2078,3050.7,3050.0,4.2311]
[1763456789685,3.73943,3050.7,3050.5,0.771]
[1763456790177,0.53163,3050.6,3050.5,0.77428873]
[1763456790384,1.91028749,3050.6,3050.5,0.00328873]
[1763456790782,1.91028749,3050.6,3050.0,4.2311]
[1763456790783,1.90702,3050.1,3050.0,0.25]
[1763456790977,5.11482,3050.1,3050.0,0.25]
[1763456791889,3.2078,3050.5,3050.0,2.27766553]
[1763456792081,3.2078,3050.5,3050.4,1.2527]
[1763456792581,3.2078,3050.5,3050.0,0.25396553]
[1763456793384,3.73947,3050.5,3050.0,0.25396553]
[1763456793586,0.53169,3050.3,3050.0,0.25396553]
[1763456793884,0.53178,3049.8,3049.1,3.2078]
[1763456794183,3.2078,3049.7,3049.1,3.2078]
[1763456794393,3.7396,3049.7,3049.1,3.2078]
[1763456794588,0.53181,3049.6,3049.1,3.2078]
[1763456794787,1.3753,3049.2,3048.7,0.0328014]
[1763456794978,1.3753,3049.2,3049.1,0.00318681]
[1763456795583,3.21271296,3049.3,3049.1,0.00318681]
[1763456795786,3.21271296,3049.3,3049.2,2.0237]
[1763456796386,3.21271296,3049.3,3049.2,0.771]
[1763456796580,1.3753,3049.2,3049.1,0.00318681]
[1763456798983,3.21271296,3049.3,3049.1,0.00318681]
[1763456799293,0.00491296,3049.3,3049.2,2.0237]
[1763456800491,3.21271296,3049.3,3049.2,0.771]
[1763456800893,0.53188,3049.2,3048.7,0.0328014]
[1763456801094,3.2078,3048.8,3048.7,0.0328014]
[1763456801888,3.2078,3048.8,3048.7,0.03570376]
[1763456803094,3.2078,3048.8,3048.7,1.28840376]
[1763456803586,4.5831,3048.8,3048.7,0.03570376]
[1763456804492,3.2078,3048.8,3048.7,0.03570376]
[1763456804990,3.2078,3049.2,3049.1,1.2527]
[1763456805595,3.2078,3049.2,3048.7,0.03570376]
[1763456805794,3.2078,3049.2,3049.1,1.2527]
[1763456808197,3.2078,3049.7,3049.2,2.0237]
[1763456808393,1.91930307,3049.7,3049.6,1.2527]
[1763456809485,0.53665296,3050.0,3049.6,1.2527]
[1763456809689,0.00491296,3050.0,3049.6,1.2527]
[1763456809893,0.53179,3049.7,3049.4,3.2078]
[1763456810195,0.00491296,3050.0,3049.4,3.2078]
[1763456810196,3.2078,3049.8,3049.4,3.2078]
[1763456810398,1.3753,3049.5,3049.4,3.2078]
[1763456811087,3.2078,3049.8,3049.4,4.4605]
[1763456811290,0.53179,3049.7,3049.4,4.4605]
[1763456811998,1.90713,3049.5,3049.4,3.2078]
[1763456812402,1.3753,3049.5,3049.4,3.2078]
[1763456812594,0.53181,3049.6,3049.4,3.2078]
[1763456812789,3.73959,3049.8,3049.4,3.2078]
[1763456812996,0.53181,3049.6,3049.4,3.2078]
[1763456813592,1.3753,3049.5,3049.4,3.2078]
[1763456813801,3.2078,3049.8,3049.7,1.2527]
[1763456814816,1.3753,3049.4,3049.3,0.00491296]
[1763456815210,0.53183,3049.5,3049.3,0.00491296]
[1763456815810,0.00491296,3050.0,3049.7,1.2527]
[1763456816015,0.53176,3049.9,3049.7,1.2527]
[1763456818216,0.53666296,3050.0,3049.7,1.2527]
[1763456818416,0.53176,3049.9,3049.8,1.2527]
[1763456818615,0.00491296,3050.0,3049.8,1.2527]
[1763456819016,0.00491296,3050.0,3049.9,1.224]
[1763456819507,0.00491296,3050.0,3049.5,0.771]
[1763456819711,1.0982,3049.6,3049.3,0.00491296]
[1763456820109,3.2078,3049.8,3049.5,0.6878]
[1763456820110,0.53179,3049.7,3049.5,0.6878]
[1763456820417,0.00491296,3050.0,3049.5,0.6878]
[1763456820611,0.53176,3049.9,3049.5,0.6878]
[1763456820807,0.00491296,3050.0,3049.5,0.6878]
[1763456821311,0.53178,3049.8,3049.5,0.6878]
[1763456821618,0.53181,3049.6,3049.5,1.9118]
[1763456822516,0.53184,3049.4,3049.3,3.21271296]
[1763456822720,1.63004,3049.4,3049.3,0.00491296]
[1763456824916,1.0982,3049.4,3049.3,0.00491296]
[1763456825120,3.2078,3049.5,3049.4,1.224]
[1763456827327,1.0982,3049.4,3049.3,0.00491296]
[1763456829722,2.27262069,3049.4,3049.3,0.00491296]
[1763456831117,1.0982,3049.4,3049.3,0.00491296]
[1763456832426,2.86512415,3049.4,3049.3,0.00491296]
[1763456833020,2.27620633,3049.4,3049.3,0.00491296]
[1763456833622,2.86512415,3049.4,3049.3,0.00491296]
[1763456833928,1.0933,3048.8,3048.7,0.03570376]
[1763456834621,3.2078,3049.1,3048.7,1.25970376]
[1763456834820,1.0933,3048.8,3048.7,0.03570376]
[1763456836627,1.62525,3048.8,3048.7,0.03570376]
[1763456838221,0.53211,3047.9,3047.8,1.224]
[1763456838418,0.53215,3047.7,3047.0,0.49231799]
[1763456838622,3.2078,3047.9,3047.0,0.49231799]
[1763456838823,3.2078,3047.4,3047.3,1.224]
[1763456839331,3.21169371,3047.4,3047.3,1.22660809]
[1763456840827,0.00492149,3048.2,3047.7,1.224]
[1763456841032,0.00492149,3048.2,3048.1,1.224]
[1763456841928,0.00775861,3048.2,3048.1,1.224]
[1763456843631,1.21665861,3048.2,3047.6,3.2078]
[1763456843927,0.53208,3048.1,3047.7,1.2191]
[1763456844321,0.00775861,3048.2,3047.7,1.2191]
[1763456845921,0.00775861,3048.2,3048.1,1.2191]